Cogmind - Beta 15 @@@ ROGUE MODE // 2025.06.28 @ 22:23:31 Player: Null_error Result: Destroyed by S-10 Pest with Light Assault Rifle Performance ------------- Evolutions (1) 500 Regions Visited (2) 400 Robots Destroyed (28) 140 Value Destroyed (579) 579 Prototype IDs (3) 60 Alien Tech Used (0) 0 Bonus (0) 0 TOTAL SCORE: 1679 Bonus ------- None Cogmind --------- Core Integrity 0/400 Matter 203/300 Energy 265/265 System Corruption 0% Temperature Cool (1) Movement Flying (180) Ox2 Location -9/Materials Parts ------- > --- POWER (1) -------- Improved Ion Engine > --- PROPULSION (3) --- Improved Flight Unit > --- UTILITY (3) ------ Sensor Array > --- WEAPON (2) ------- Maul > --- INVENTORY (5) ---- Light Ion Engine Light Treads Wheel Datajack Peak State ------------ > --- POWER ------------ Improved Ion Engine > --- PROPULSION ------- Light Treads Improved Hover Unit Improved Flight Unit > --- UTILITY ---------- Heat Sink Weight Redist. System Sensor Array > --- WEAPON ----------- Improved Assault Rifle Maul > --- INVENTORY -------- Light Ion Engine Light Treads Wheel Heavy Assault Rifle Datajack [Rating: 17] Favorites ----------- Power Improved Ion Engine Engine Improved Ion Engine Propulsion Light Treads Treads Light Treads Wheel Compact Wheel Hover Unit Improved Hover Unit Flight Unit Improved Flight Unit Utility Sensor Array Device Sensor Array Storage Small Storage Unit Weapon Light Assault Rifle Energy Gun EM Pulse Gun Ballistic Gun Light Assault Rifle Impact Weapon Maul Build | -11 -10 -9 ------- Run | Yrd Mat Mat Slots Evolved 2 | . . 2 Power . | . . . Propulsion 1 | . . 1 Utility 1 | . . 1 Weapon . | . . . Parts Attached 41 | 7 9 25 Power 7 | 1 2 4 Engine 7 | 1 2 4 Core . | . . . Reactor . | . . . Propulsion 15 | 2 3 10 Treads 4 | . . 4 Leg . | . . . Wheel 4 | 2 2 . Hover 2 | . . 2 Flight 5 | . 1 4 Utility 7 | 2 2 3 Device 6 | 1 2 3 Storage 1 | 1 . . Processor . | . . . Hackware . | . . . Protection . | . . . Artifact . | . . . Weapon 12 | 2 2 8 Energy Gun 2 | 1 . 1 Energy Cannon . | . . . Ballistic Gun 9 | 1 2 6 Ballistic Cannon . | . . . Launcher . | . . . Special Weapon . | . . . Impact Weapon 1 | . . 1 Slashing Weapon . | . . . Piercing Weapon . | . . . Special Melee Weapon . | . . . Unidentified Prototypes 3 | . . 3 Parts Lost 15 | . 6 9 Power 2 | . 1 1 Propulsion 6 | . 2 4 Utility 4 | . 1 3 Weapon 3 | . 2 1 Highest Loss Streak 5 | . 5 4 To Critical Strikes . | . . . Average Backups 4 | 1 3 4 Power 1 | . 1 1 Propulsion 1 | . 1 2 Utility . | . . . Weapon . | . . . Tool/Special . | . . . Unused Backups 5 | . 1 4 Power 2 | . 1 1 Propulsion 2 | . . 2 Utility . | . . . Weapon . | . . . Tool/Special 1 | . . 1 Average Slot Usage (%) 80 | . 74 83 Engine 10 | . 11 10 Treads 7 | . . 10 Wheel 7 | . 16 3 Hover 4 | . . 7 Flight 3 | . 3 4 Device 27 | . 21 30 Energy Gun 3 | . 8 1 Ballistic Gun 11 | . 13 11 Impact Weapon 2 | . . 3 Peak Build Rating 17 | 7 7 17 Average Rating 9 | 4 5 11 On Entrance 4 | . 7 7 Naked Turns . | . . . Heaviest Build 16 | 12 12 16 Greatest Support 46 | 32 32 46 Greatest Overweight (x) 5 | . 1 5 Average Overweight (x) . | . . . Largest Inventory Capacity 8 | 8 8 5 Average Capacity 5 | 7 5 5 Most Carried 5 | 2 5 5 Average Carried 4 | 1 3 4 Final Capacity 8 | 8 5 5 Final Carried 4 | 2 4 4 Class Distribution -------------------- 65% | Mutant 34% | Scavenger-Mutant Dominant Class ---------------- Mutant | -10/Materials Scavenger-Mutant | -9/Materials Resources | -11 -10 -9 ----------- Run | Yrd Mat Mat Matter Collected 611 | 180 47 384 Remotely . | . . . Salvage Created 772 | 30 120 622 Parts 46 | 3 9 34 Haulers Intercepted 2 | . . 2 Recyclers Shooed . | . . . Parts Field Recycled . | . . . Retrieved Matter . | . . . Parts Self-Destructed . | . . . Prevented . | . . . Kills | -11 -10 -9 ------- Run | Yrd Mat Mat Combat Hostiles Destroyed 22 | . 6 16 Melee 1 | . . 1 Guns 16 | . 2 14 AOE 4 | . 4 . Classes Destroyed 7 | 1 3 3 Tunneler 1 | 1 . . Hauler 2 | . . 2 Operator 1 | . 1 . Watcher 2 | . 1 1 Swarmer 13 | . 6 7 Grunt 5 | . . 5 Sentry 4 | . . 4 Best Kill Streak 6 | 1 4 6 Combat Bots Only 6 | . 3 6 Max Kills in Single Turn 3 | 1 3 2 Gunslinging 1 | . . 1 Exploded 3 | . 3 . Melee 1 | . . 1 Uniques/NPCs Destroyed . | . . . Combat | -11 -10 -9 -------- Run | Yrd Mat Mat Hostile Shots Fired 213 | . 33 180 Missed 64 | . 7 57 Hits 149 | . 26 123 Projectile 149 | . 26 123 Critical Strikes 4 | . . 4 Damage Taken 1842 | 5 400 1437 Core 501 | 5 96 400 Absorbed by Shields . | . . . Core Remaining (%) 78 | 98 59 . Volleys Fired 63 | 4 18 41 Largest 2 | 2 2 2 Hottest 60 | 60 60 43 Shots Fired 93 | 8 23 62 Gun 93 | 8 23 62 Cannon . | . . . Launcher . | . . . Special . | . . . Kinetic 75 | 4 9 62 Thermal . | . . . Explosive . | . . . Electromagnetic 18 | 4 14 . Robot Hit Streak 20 | 1 3 20 Robot Miss Streak 4 | 4 3 2 Penetration Max . | . . . Secondary Targets 3 | . . 3 Max Gunslinging Chain 1 | . . 1 Shots Hit Robots 74 | 2 11 61 Core Hits 38 | 2 10 26 Critical Kills 2 | . 1 1 Critical Parts Destroyed 3 | . . 3 Critical Strikes 5 | . 1 4 Destroy 3 | . 1 2 Smash 2 | . . 2 Melee Attacks 16 | . . 16 Impact 16 | . . 16 Slashing . | . . . Piercing . | . . . Sneak Attacks 1 | . . 1 Combat Hostiles . | . . . Follow-up Attacks . | . . . Damage Inflicted 1459 | 20 477 962 Guns 841 | 19 123 699 Cannons . | . . . Explosions 354 | . 354 . Melee 263 | . . 263 Ramming 1 | 1 . . Kinetic 764 | 6 59 699 Thermal 25 | . 25 . Explosive 329 | . 329 . Electromagnetic 77 | 13 64 . Impact 263 | . . 263 Slashing . | . . . Piercing . | . . . Highest Corruption . | . . . Average Corruption . | . . . Corruption Purged . | . . . Corruption Blocked . | . . . Overload Shots . | . . . Overflow Damage 111 | . 75 36 Projectiles . | . . . Explosions 75 | . 75 . Melee 36 | . . 36 Knockbacks 2 | . . 2 Impact 2 | . . 2 Kinetic . | . . . Secondary . | . . . Self-Inflicted Damage 197 | . 197 . Shots 2 | . 2 . Rammed 1 | 1 . . Targets Rammed 1 | 1 . . Kicked . | . . . Crushed . | . . . Highest Temperature 40 | 40 20 12 Average Temperature 12 | 20 11 8 Received Heat Transfer 468 | . . 468 Siege Activations . | . . . Martial Activations . | . . . Shielding Activations . | . . . Robots Disrupted . | . . . Combat Hostiles . | . . . Robots Corrupted 1 | . . 1 Combat Hostiles 1 | . . 1 Parts Fried 1 | . . 1 Impact Corruptions 2 | . . 2 Robots Melted . | . . . Combat Hostiles . | . . . Parts Melted . | . . . Heat Transferred 50 | . 50 . Parts Sabotaged . | . . . Parts Stolen . | . . . Parts Stripped . | . . . Power Chain Reactions 1 | . 1 . Alert | -11 -10 -9 ------- Run | Yrd Mat Mat Maximum Alert Level 1 | . . 1 Low Security (%) 83 | 100 100 74 Level 1 16 | . . 25 Level 2 . | . . . Level 3 . | . . . Level 4 . | . . . Level 5 . | . . . High Security . | . . . Max Security . | . . . Peak Influence 284 | . 122 284 Initial 34 | . . 34 Average 123 | . 58 162 Influence Increases 845 | 5 237 603 Destroy 0b10 Robot/C 440 | . 120 320 Destroy 0b10 Robot/NC 30 | 5 10 15 Destroy Leader 108 | . 22 86 Disable Machine 60 | . 60 . Destroy Structure 27 | . 25 2 Lose Combat Pursuer 180 | . . 180 Influence Decreases 584 | 5 155 424 Entered New Map 48 | . . 48 Time Decay 386 | 5 95 286 Lost Part 150 | . 60 90 Squads Dispatched 4 | . . 4 Investigation 1 | . . 1 Extermination . | . . . Reinforcement 3 | . . 3 Assault . | . . . Garrison . | . . . Intercept . | . . . Searches Triggered . | . . . Construction Impeded . | . . . Haulers Reinforced . | . . . Active Scanning Responses . | . . . Cargo Convoy Interrupts . | . . . Stealth | -11 -10 -9 --------- Run | Yrd Mat Mat Distress Signals 2 | . . 2 Communications Jammed . | . . . Distress Signals . | . . . Times Spotted 45 | . 10 35 Peak Tracking Total 10 | . 4 10 Tactical Retreats 6 | . . 6 Traps | -11 -10 -9 ------- Run | Yrd Mat Mat Traps Triggered 2 | . . 2 Indirectly . | . . . Trap Hack Attempts . | . . . Triggered . | . . . Disarmed . | . . . Reprogrammed . | . . . Reused . | . . . Traps Extracted . | . . . Installed . | . . . Triggered . | . . . Machines | -11 -10 -9 ---------- Run | Yrd Mat Mat Machines Disabled 4 | . 4 . Max in Single Turn 2 | . 2 . Machines Repaired . | . . . Machines Dismantled . | . . . Machines Sabotaged . | . . . Overloaded Fab Kills . | . . . Hacking | -11 -10 -9 --------- Run | Yrd Mat Mat Machines Accessed 4 | . 4 . Terminals 4 | . 4 . Fabricators . | . . . Repair Stations . | . . . Recycling Units . | . . . Scanalyzers . | . . . Garrison Access . | . . . Total Hacks 11 | . 11 . Successful 3 | . 3 . Failed 8 | . 8 . Catastrophic 1 | . 1 . Database Lockouts . | . . . Manual 13 | . 13 . Terminals 11 | . 11 . Fabricators . | . . . Repair Stations . | . . . Recycling Units . | . . . Scanalyzers . | . . . Garrison Access . | . . . Terminal Hacks 3 | . 3 . Robot Analysis 3 | . 3 . Fabricator Hacks . | . . . Repair Station Hacks . | . . . Recycling Unit Hacks . | . . . Scanalyzer . | . . . Garrison Access Hacks . | . . . Unauthorized Hacks . | . . . Terminals . | . . . Fabricators . | . . . Repair Stations . | . . . Recycling Units . | . . . Scanalyzers . | . . . Garrison Access . | . . . Data Cores Recovered . | . . . Used . | . . . Hacking Detections 3 | . 3 . Full Trace Events 1 | . 1 . Feedback Events . | . . . Feedback Blocked . | . . . Robot Schematics Acquired . | . . . Robots Built . | . . . Authchips . | . . . Time . | . . . Total Robot Build Rating . | . . . Part Schematics Acquired . | . . . Parts Built . | . . . Authchips . | . . . Time . | . . . Total Part Build Rating . | . . . Parts Repaired . | . . . Time . | . . . Parts Recycled . | . . . Recycled Matter . | . . . Retrieved Matter . | . . . Retrieved Components . | . . . Parts Scanalyzed . | . . . Part Schematics Acquired . | . . . Parts Damaged . | . . . Bothacking | -11 -10 -9 ------------ Run | Yrd Mat Mat Used RIF Installer . | . . . Robots Hacked . | . . . Non-combat . | . . . Combat . | . . . Robot Hacks Applied . | . . . Relay Couplers Released . | . . . Fabnet Peak Effective % . | . . . Robots Rewired . | . . . Allies Hacked . | . . . Hacks Repelled . | . . . Allies | -11 -10 -9 -------- Run | Yrd Mat Mat Total Allies . | . . . Largest Group . | . . . Highest-Rated Group . | . . . Highest-Rated Ally . | . . . Total Orders . | . . . Ally Attacks . | . . . Total Damage . | . . . Kills . | . . . Allies Corrupted . | . . . Allies Melted . | . . . Intel | -11 -10 -9 ------- Run | Yrd Mat Mat Active Infowar (turns) 899 | 7 267 625 Sensors 762 | . 137 625 Seismic 456 | 7 267 182 Robot Analysis Total 3 | . 3 . Derelict Logs Recovered . | . . . Drone Launches . | . . . Drone Recoveries . | . . . Exploration | -11 -10 -9 ------------- Run | Yrd Mat Mat Turns Passed 947 | 55 267 625 Spaces Moved 743 | 31 302 410 Core 70 | 1 55 14 Treads 10 | . . 10 Legs . | . . . Wheels 208 | 30 130 48 Hover 269 | . . 269 Flight 186 | . 117 69 Fastest Speed 40 | 50 40 40 Average Speed 89 | 98 66 105 Slowest Speed 300 | 100 100 300 Overloaded Moves . | . . . Propulsion Burnouts . | . . . Robots Hopped 1 | . 1 . Potential Cave-ins 6 | . . 6 Cave-ins Triggered . | . . . Exploration Rate (%) 31 | 3 54 36 Regions Visited 2 Branch Regions . Pre-discovered Areas . | . . . Known Exits Taken . | . . . Unknown Exits Taken 2 | 1 1 . Scrap Searched . | . . . Spaces Dug 8 | . . 8 Terrain Destroyed 39 | . 31 8 Melee 8 | . . 8 Projectile . | . . . AOE 31 | . 31 . Terrain Rammed . | . . . Walls Destroyed . | . . . Machines Disabled . | . . . Actions | -11 -10 -9 --------- Run | Yrd Mat Mat Total 900 | 44 342 514 Wait 12 | . 7 5 Move 739 | 30 299 410 Hop 1 | . 1 . Pick Up 6 | 2 3 1 Fast Attach 23 | 7 7 9 Attach 1 | . . 1 Detach 2 | . 1 1 Swap 19 | . 3 16 Drop 17 | . 3 14 Fire 63 | 4 18 41 Melee 16 | . . 16 Ram 1 | 1 . . Kick . | . . . Crush . | . . . Escape Stasis . | . . . Rewire . | . . . Trap . | . . . Miscellaneous . | . . . Route ------- -11/Scrapyard -10/Materials -9/Materials History --------- Turn | Location | Event 26 | -11/Scrapyard | Discovered new exit (range 14) 56 | -11/Scrapyard | Entered Materials 186 | -10/Materials | Lost 5 parts (1p2n1u1w) 266 | -10/Materials | Discovered new exit (range 15) 305 | -10/Materials | Build established: Mutant 323 | -10/Materials | Entered another Materials area 323 | -9/Materials | Evolved 2 slots: Propulsion x1, Utility x1 490 | -9/Materials | Core integrity fell below 50% 494 | -9/Materials | Lost 4 parts (3n1w) 678 | -9/Materials | Core integrity fell below 20% 698 | -9/Materials | Build established: Scavenger-Mutant 948 | -9/Materials | Destroyed by S-10 Pest with Light Assault Rifle Last Messages --------------- 00807_ R-06 Scavenger collects Aluminum Leg. 00813_ Acquired 40 matter. 00829_ Acquired 13 matter. 00858_ K-01 Serf destroyed. 00876_ Triggered Blade Trap. 00876_ Massive razor-sharp blades shoot up from within the floor. 00876_ Imp. EM Shotgun severed. 00876_ Lgt. Treads severed. 00880_ M-13 Machinist repairs L-31 Rogue. 00910_ The unstable cave ceiling collapses. 00925_ W-16 Scout sends out distress signal. 00925_ O-16 Technician uses terminal to summon reinforcements. 00925_ ALERT: Hostiles spotted, dispatching reinforcements to Terminal M002. 00925_ O-16 Technician locks terminal. 00942_ Imp. Hover Unit destroyed. 00945_ Weight Redist. System destroyed. 00946_ Heat Sink destroyed. Map ----- +----------------------------------------------------+ | ?????????????????????????????????????????????????? | | ?????????????????????????????????????????????????? | | ?????????????????????????????????????????????????? | | ?????????????????????????????????????????????????? | | ?????????????????????????????????????????????????? | | ?????????????????????????????????????????????????? | | ?????????????????????????????????????????????????? | | ?????????????????????????????????????????????????? | | ?????????????????????????????????????????????????? | | ?????????????????????????????????????????????????? | | ?????????????????????????????????????????????????? | | ?????????????????????????????????????????????????? | | ?????????????????????????????????????????????????? | | ????? ?????????????????????????????????????????? | | ????# +????????????????????????????????????????? | | ??? #????????????????????????????????????????? | | ?? #????????????????????????????????????????? | | ??? #????????????????????????????????????????? | | ??? #????????????????????????????????????????? | | ???? #????????????????????????????????????????? | | ???? #???????????##########???????????????????? | | ????# #???????????# #???????????????????? | | ????# #??########## """ #???????????????????? | | ????# #??# # """ #???????????????????? | | ????# #??# s s """ #???????????????????? | | ????# #??# #s @ !#???????????????????? | | ????# #??# ###### """ #???????????????????? | | ????# #### #????# """ #???????????????????? | | ##### ? #????# """ #???????????????????? | | " #????# #???????????????????? | | #####"" """ #????##########???????????????????? | | ????#"T """ ??????????????????????????????? | | ????#"" """ ?????????????????????????????? | | ????# ????????????????????????????? | | ????# #######???????????????????????????? | | ????# #?????????????????????????????????? | | ????# #?????????????????????????????????? | | ????## #######?????????????????????????????????? | | ?????# #???????????????????????????????????????? | | ?????# #???????????????????????????????????????? | | ?????# #???????????????????????????????????????? | | ?????# #???????????????????????????????????????? | | ###?? ????????????????????????????????????????? | | ??? ????????????????????????????????????????? | | ???? ????????????????????????????????????????? | | ""???????????????????????????????????????????????? | | "" #?????????????????????????????????????????????? | | "" #?????????????????????????????????????????????? | | #?????????????????????????????????????????????? | | ####?????????????????????????????????????????????? | +----------------------------------------------------+ Best States ------------- Heat Dissipation 38 Energy Generation 12 Energy Capacity 265 Matter Stores 260 Matter Capacity 300 Sight Range 16 Robot Scan Range 14 Terrain Scan Density 10 Additional Mass Support 6 Evasion (%) 62 Recoil Reduction 2 Item Schematics ----------------- None Robot Schematics ------------------ None Fabricated ------------ Nothing Repaired ---------- Nothing Alien Tech Used ----------------- None Achievements -------------- None Challenges ------------ None Game ------ Seed MakeshiftXenonThruster Manual? 0 Play Time 00:14:40 Cumulative 75.0 hours Start 2025.05.19 @ 01:28:33 End 2025.06.28 @ 22:23:31 Sessions 3 Manual Loads 0 Difficulty Rogue Special Mode None Game No. 89 Rogue 89 Adventurer 0 Explorer 0 Win Type - Total 1 Types 1/0/0/0/0/0/0/0/0/0 Lore% 26 Gallery% 46 Achievement% 34 Wizard Run 0 Options --------- Layout 1 ASCII 0 Keyboard 1 Movement Numpad Keybinds 0 Fullscreen 2 Font 24/Smallcaps Map View 50x35 Zoom Use 0% Tactical HUD 1 Map Filters NONE Filters LOW_CONTRAST(5,10,15) Steam 1 RUN: 97be5574-d97e-4a11-a264-07f637753ef4